Cogmind - Beta 12 *** ADVENTURER MODE // 2023.09.22 @ 13:08:52 Player: Daemos Result: Destroyed by Antimatter Reactor chain reaction Performance ------------- Evolutions (9) 4500 Regions Visited (15) 3000 Robots Destroyed (397) 1985 Value Destroyed (19812) 19812 Prototype IDs (53) 1060 Alien Tech Used (0) 0 Bonus (3092) 3092 TOTAL SCORE: 33449 Bonus ------- High Alert Combat Kills 1393 Follower Combat Kills 1047 Entered DSFs 500 Aligned with FarCom 300 Friendly Fire -148 Cogmind --------- Core Integrity 0/1600 Matter 300/300 Energy 61/100 System Corruption 20% Temperature Cool (12) Movement Core (50) Location -1/Access Parts ------- > --- POWER (2) -------- (None) > --- PROPULSION (5) --- (None) > --- UTILITY (14) ----- Advanced Signal Interpreter Improved Targeting Computer Advanced Target Analyzer Advanced Target Analyzer Experimental Core Analyzer Graphene Brace > --- WEAPON (4) ------- (None) > --- INVENTORY (5) ---- Particle Reactor Advanced Target Analyzer Skeleton Box Peak State ------------ > --- POWER ------------ Reinforced Antimatter Reactor Quantum Reactor > --- PROPULSION ------- Biometal Medium Treads Armored Heavy Treads Armored Heavy Treads > --- UTILITY ---------- Advanced Cryofiber Web Advanced Heat Sink Advanced Cooling System Advanced Energy Well Advanced Signal Interpreter Improved Targeting Computer Advanced Target Analyzer Advanced Target Analyzer Advanced Target Analyzer Advanced Target Analyzer Experimental Core Analyzer Particle Accelerator Graphene Brace Advanced System Shield > --- WEAPON ----------- Gamma Rifle Gamma Rifle Gamma Rifle Enhanced Quantum Rifle > --- INVENTORY -------- Particle Reactor Advanced Target Analyzer Skeleton Box [Rating: 183] Favorites ----------- Power Improved Deuterium Engine Engine Improved Deuterium Engine Power Core Light Nuclear Core Reactor Particle Reactor Propulsion Medium Treads Treads Medium Treads Leg Aluminum Leg Wheel Wheel Hover Unit Antigrav System Flight Unit Biomechanical Wings Utility Advanced Heat Sink Device Advanced Heat Sink Storage Medium Storage Unit Processor Advanced Target Analyzer Hackware System Shield Protection Centrium Medium Armor Plating Weapon KE Penetrator Energy Gun Gamma Rifle Energy Cannon Compact Ion Cannon Ballistic Gun KE Penetrator Ballistic Cannon Magnetic Acceleration Cannon Launcher Improved Grenade Launcher Impact Weapon Powered Hammer Slashing Weapon Katana Piercing Weapon Force Lance Build | -11 -10 -10 -10 -9 -8 -8 -7 -6 -5 -5 -4 -4 -3 -2 -1 ------- Run | Jun Mat Min Exi Min Mat Sto Fac Fac Fac DSF Fac Ext Res Res Acc Slots Evolved 18 | . . . . . 4 . 2 2 2 . 2 . 2 2 2 Power 1 | . . . . . 1 . . . . . . . . . . Propulsion 3 | . . . . . 1 . . 1 . . 1 . . . . Utility 12 | . . . . . 2 . 2 . 2 . . . 2 2 2 Weapon 2 | . . . . . . . . 1 . . 1 . . . . Parts Attached 406 | 6 14 3 . . 48 17 45 28 3 15 65 39 62 57 4 Power 67 | 1 1 1 . . 10 6 10 5 . 2 11 7 6 6 1 Engine 25 | 1 1 1 . . 6 5 6 3 . 1 1 . . . . Core 23 | . . . . . 4 1 4 2 . 1 6 4 1 . . Reactor 19 | . . . . . . . . . . . 4 3 5 6 1 Propulsion 83 | 2 4 . . . 15 . 7 6 . 3 18 4 18 6 . Treads 46 | . . . . . 6 . 7 5 . 3 4 4 12 5 . Leg 20 | 2 4 . . . 9 . . . . . . . 4 1 . Wheel 1 | . . . . . . . . . . . . . 1 . . Hover 14 | . . . . . . . . . . . 14 . . . . Flight 2 | . . . . . . . . 1 . . . . 1 . . Utility 133 | 1 3 2 . . 8 1 12 4 3 6 18 17 27 29 2 Device 82 | . . 1 . . 3 1 10 4 2 6 9 11 19 15 1 Storage 12 | 1 . 1 . . 1 . 1 . . . 1 2 3 1 1 Processor 19 | . 1 . . . 2 . 1 . . . 5 1 2 7 . Hackware 2 | . . . . . . . . . . . 1 . . 1 . Protection 18 | . 2 . . . 2 . . . 1 . 2 3 3 5 . Artifact . | . . . . . . . . . . . . . . . . Weapon 123 | 2 6 . . . 15 10 16 13 . 4 18 11 11 16 1 Energy Gun 31 | . . . . . 5 2 1 1 . . 2 2 2 15 1 Energy Cannon 31 | . . . . . 4 5 10 7 . . 2 2 1 . . Ballistic Gun 16 | 2 5 . . . 3 1 . . . . . 2 2 1 . Ballistic Cannon 29 | . 1 . . . . . . 5 . 3 11 4 5 . . Launcher 5 | . . . . . . 1 3 . . . . . 1 . . Special Weapon . | . . . . . . . . . . . . . . . . Impact Weapon 8 | . . . . . 1 1 2 . . 1 3 . . . . Slashing Weapon 2 | . . . . . 2 . . . . . . . . . . Piercing Weapon 1 | . . . . . . . . . . . . 1 . . . Special Melee Weapon . | . . . . . . . . . . . . . . . . Unidentified Prototypes 23 | . . 1 . . 3 5 2 2 . . . 1 7 2 . Parts Lost 133 | . . . . . 14 . 10 5 . 14 17 9 26 20 18 Power 23 | . . . . . 3 . 2 3 . 4 2 2 4 1 2 Propulsion 31 | . . . . . 7 . 3 1 . 2 6 1 8 . 3 Utility 43 | . . . . . 1 . 3 . . 6 4 3 8 10 8 Weapon 36 | . . . . . 3 . 2 1 . 2 5 3 6 9 5 Highest Loss Streak 18 | . . . . . 8 . 4 3 . 6 5 2 14 6 18 To Critical Strikes . | . . . . . . . . . . . . . . . . Average Slot Usage (%) 91 | . 97 100 100 100 92 99 94 88 95 74 84 91 87 90 82 Engine 6 | . 14 14 14 14 9 17 11 6 11 6 . . . . . Core 2 | . . . . . 6 . 2 4 . 1 3 6 2 . . Reactor 1 | . . . . . . . . . . . 4 3 5 7 7 Treads 13 | . . . . . 10 27 21 16 23 14 10 14 13 6 10 Leg 5 | . 28 28 28 28 13 . . . . . . . . 8 . Hover 1 | . . . . . . . . . . . 6 4 . . . Device 12 | . . . . . 7 8 16 19 22 21 15 7 9 18 16 Storage 7 | . 14 14 14 14 9 9 7 6 5 5 5 4 7 2 2 Processor 14 | . 2 14 14 14 10 18 17 13 11 6 9 21 18 22 27 Hackware 1 | . . . . . . . . . . . 4 5 2 3 3 Protection 2 | . 9 . . . 7 . . . 1 . 1 2 4 1 . Energy Gun 2 | . . . . . 6 . . . . . 1 5 . 11 14 Energy Cannon 7 | . . . . . 7 17 14 16 5 2 5 5 1 . . Ballistic Gun 5 | . 26 28 28 28 2 . . . . . . 5 8 2 . Ballistic Cannon 3 | . 1 . . . . . . 2 11 11 10 3 6 . . Naked Turns . | . . . . . . . . . . . . . . . . Heaviest Build 119 | 11 23 20 20 20 39 38 51 61 66 65 78 93 119 90 79 Greatest Support 175 | 20 20 20 20 20 84 84 84 100 100 111 81 175 175 155 155 Greatest Overweight (x) 8 | 3 1 . . . 8 . 1 1 . 1 4 . 1 1 1 Average Overweight (x) . | . . . . . . . . . . . . . . . . Largest Inventory Capacity 10 | 8 8 8 8 8 8 8 10 10 10 10 10 10 10 10 5 Average Capacity 8 | 7 8 7 8 8 8 8 8 10 10 10 10 9 10 6 5 Most Carried 10 | 1 7 8 8 8 8 8 8 10 10 10 10 10 10 5 5 Average Carried 7 | . 4 7 7 8 7 7 7 9 9 8 8 7 8 4 3 Final Capacity 10 | 8 8 8 8 8 8 8 10 10 10 10 10 10 10 5 5 Final Carried 10 | 1 6 8 8 8 8 8 7 9 10 8 10 9 5 5 3 Class Distribution -------------------- 24% | Scavenger-Gunner 22% | Mutant 21% | Skirmisher 15% | Scavenger-Mutant 3% | Commander-Mutant 3% | Scavenger-Tank Dominant Class ---------------- Mutant | -10/Materials Scavenger-Mutant | -10/Mines Scavenger-Mutant | -10/Exiles Scavenger-Mutant | -9/Mines Scavenger-Mutant | -8/Materials Commander-Mutant | -8/Storage Mutant | -7/Factory Skirmisher | -6/Factory Skirmisher | -5/Factory Skirmisher | -5/DSF Scavenger-Gunner | -4/Factory Scavenger-Gunner | -4/Extension Scavenger-Gunner | -3/Research Scavenger-Gunner | -2/Research Scavenger-Gunner | -1/Access Resources | -11 -10 -10 -10 -9 -8 -8 -7 -6 -5 -5 -4 -4 -3 -2 -1 ----------- Run | Jun Mat Min Exi Min Mat Sto Fac Fac Fac DSF Fac Ext Res Res Acc Matter Collected 11389 | 103 379 301 . 120 559 196 519 359 9 630 2161 713 4275 1045 20 Remotely 346 | . . . . . . . . . . . . . . 346 . Salvage Created 21457 | . 421 213 . 123 1959 299 3138 1082 9 690 2484 1506 6076 2675 782 Parts 937 | . 26 14 . 18 89 14 117 71 1 15 102 39 229 169 33 Haulers Intercepted 13 | . 2 . . . 2 1 3 1 . . . . 3 1 . Recyclers Shooed 15 | . . . . . . . . 4 . . . 3 5 3 . Parts Field Recycled . | . . . . . . . . . . . . . . . . Retrieved Matter . | . . . . . . . . . . . . . . . . Parts Self-Destructed . | . . . . . . . . . . . . . . . . Prevented . | . . . . . . . . . . . . . . . . Kills | -11 -10 -10 -10 -9 -8 -8 -7 -6 -5 -5 -4 -4 -3 -2 -1 ------- Run | Jun Mat Min Exi Min Mat Sto Fac Fac Fac DSF Fac Ext Res Res Acc Combat Hostiles Destroyed 313 | . 8 8 . 9 32 3 46 18 . 16 48 13 81 25 6 Melee 14 | . . . . . 9 . . . . . 4 . . . 1 Guns 102 | . 7 8 . 9 10 . . . . . . 5 39 23 1 Cannons 162 | . 1 . . . 6 1 41 15 . 12 41 6 39 . . AOE 9 | . . . . . 3 1 . 3 . . . . 2 . . Classes Destroyed 19 | . 4 2 . . 5 1 2 1 . 2 1 1 . . . Worker 13 | . . . . . 1 . 4 1 . . . . 7 . . Builder 12 | . . . . . 1 . . . . . 2 . 8 1 . Tunneler 2 | . . . . . . . 1 . . . . . 1 . . Hauler 13 | . 2 . . . 2 1 3 1 . . . . 3 1 . Recycler 23 | . . . . . 2 . 6 . . . 2 4 6 3 . Operator 3 | . . . . . . 1 . 1 . . . . . . 1 Watcher 30 | . 3 . . . 3 2 2 4 1 . 3 1 6 1 4 Swarmer 33 | . 2 3 . 9 4 . 5 . . 4 . . 6 . . Saboteur 1 | . . . . . . . . . . . 1 . . . . Grunt 104 | . 6 2 . . 15 . 26 3 . 6 8 3 27 4 4 Brawler 6 | . . . . . . . . 1 . . 1 . 4 . . Duelist 10 | . . . . . 1 . 2 2 . . . 1 4 . . Sentry 43 | . . 1 . . 10 3 3 3 . . 5 4 9 5 . Demolisher 2 | . . 2 . . . . . . . . . . . . . Specialist 7 | . . . . . . . . . . 5 2 . . . . Hunter 25 | . . . . . 2 . 1 1 . . 6 2 12 . 1 Programmer 79 | . . . . . . . 10 8 . . 24 2 19 15 1 Heavy 2 | . . . . . . . . . . 1 1 . . . . Behemoth 2 | . . . . . . . . . . . . 1 . 1 . Best Kill Streak 11 | . 2 4 . 3 6 3 10 4 1 4 5 5 11 4 7 Combat Bots Only 6 | . 2 4 . 3 6 1 5 4 . 4 5 3 6 4 4 Max Kills in Single Turn 4 | . 1 2 . 1 2 1 2 3 1 1 2 1 4 1 1 Gunslinging 1 | . . 1 . . . . . . . . . . . . . Exploded 3 | . . . . . 2 1 . 3 . . . . 2 . . Melee 1 | . . . . . 1 . . . . . 1 . . . 1 Uniques/NPCs Destroyed . | . . . . . . . . . . . . . . . . Combat | -11 -10 -10 -10 -9 -8 -8 -7 -6 -5 -5 -4 -4 -3 -2 -1 -------- Run | Jun Mat Min Exi Min Mat Sto Fac Fac Fac DSF Fac Ext Res Res Acc Damage Taken 26415 | . 261 229 . 85 2059 58 2636 844 . 1713 4460 1390 4896 4315 3469 Core 4732 | . 39 63 . 24 401 12 344 58 . 643 327 151 404 663 1603 Absorbed by Shields 3423 | . . . . . . . 141 . . . 273 143 2781 85 . Reduced by Siege Mode 415 | . . . . . . . . . . . . 35 240 116 24 Redirected to Shielding 137 | . . . . . 48 . . . . 41 . . 48 . . Regen/Repaired (Parts) 526 | . . . . . 125 90 191 120 . . . . . . . Core Remaining (%) 59 | 100 . . . 49 . 24 50 93 . 35 . 58 68 54 . Volleys Fired 891 | . 36 12 . 15 75 13 148 39 1 30 120 59 204 120 19 Largest 4 | . 2 2 . 2 2 2 2 3 3 3 4 4 4 4 4 Hottest 361 | . 55 46 . 46 138 138 138 240 196 200 297 361 251 319 290 Shots Fired 2453 | . 72 24 . 30 143 26 297 109 3 85 341 167 717 374 65 Gun 1140 | . 60 24 . 30 90 . . 2 . . 10 93 397 369 65 Cannon 1312 | . 12 . . . 53 25 297 107 3 85 331 74 320 5 . Launcher 1 | . . . . . . 1 . . . . . . . . . Special . | . . . . . . . . . . . . . . . . Kinetic 1283 | . 72 24 . 30 11 . . 21 2 67 211 57 690 98 . Thermal 771 | . . . . . 56 . 282 86 1 18 130 110 21 53 14 Explosive 1 | . . . . . . 1 . . . . . . . . . Electromagnetic 398 | . . . . . 76 25 15 2 . . . . 6 223 51 Robot Hit Streak 49 | . 18 20 . 10 17 14 26 24 2 20 20 49 41 28 21 Robot Miss Streak 4 | . 3 1 . 3 3 . 2 2 1 4 3 2 3 2 1 Penetration Max 1 | . . . . . . . . . . . 1 1 1 1 . Secondary Targets 9 | . 1 2 . 1 1 . . . . . . 1 . 3 . Max Gunslinging Chain 1 | . 1 1 . 1 1 . . . . . . 1 . 1 . Shots Hit Robots 1939 | . 57 21 . 18 138 16 246 71 2 67 282 133 555 284 49 Core Hits 861 | . 17 10 . 9 52 5 95 34 1 34 133 55 291 109 16 Critical Kills 35 | . . . . . . . 3 . . 1 8 2 17 4 . Critical Parts Destroyed 56 | . . . . 1 2 . 2 . . 1 10 9 26 5 . Critical Strikes 172 | . . . . 1 7 . 5 . 1 4 27 17 75 29 6 Burn 6 | . . . . . 2 . . . . . . 2 . 2 . Meltdown 8 | . . . . . . . 3 . . 1 2 1 1 . . Destroy 78 | . . . . 1 . . . . . . 10 13 44 10 . Blast 44 | . . . . . . . . . 1 2 9 1 30 1 . Corrupt 23 | . . . . . 1 . . . . . . . . 16 6 Smash 11 | . . . . . 2 . 2 . . 1 6 . . . . Sever 2 | . . . . . 2 . . . . . . . . . . Melee Attacks 84 | . . . . . 39 3 6 . . 1 35 . . . . Impact 55 | . . . . . 10 3 6 . . 1 35 . . . . Slashing 29 | . . . . . 29 . . . . . . . . . . Piercing . | . . . . . . . . . . . . . . . . Sneak Attacks 7 | . . . . . . 3 3 . . 1 . . . . . Combat Hostiles 1 | . . . . . . . . . . 1 . . . . . Follow-up Attacks . | . . . . . . . . . . . . . . . . Damage Inflicted 54395 | . 868 317 . 262 3705 729 6283 2970 63 1738 8898 3736 17997 5192 1637 Guns 20127 | . 702 317 . 262 1182 . . 53 . . 259 2060 8741 4964 1587 Cannons 28990 | . 166 . . . 1136 414 5841 2360 63 1621 7318 1676 8248 147 . Explosions 1822 | . . . . . 152 107 . 510 . . . . 972 81 . Melee 3226 | . . . . . 1228 201 399 . . 117 1281 . . . . Ramming 230 | . . . . . 7 7 43 47 . . 40 . 36 . 50 Kinetic 26795 | . 868 317 . 262 127 . . 339 63 1237 4249 1273 16150 1910 . Thermal 17798 | . . . . . 1056 107 5724 2531 . 384 3328 2463 725 1055 425 Explosive 972 | . . . . . . . . . . . . . 972 . . Electromagnetic 5374 | . . . . . 1287 414 117 53 . . . . 114 2227 1162 Impact 2300 | . . . . . 302 201 399 . . 117 1281 . . . . Slashing 926 | . . . . . 926 . . . . . . . . . . Piercing . | . . . . . . . . . . . . . . . . Highest Corruption 30 | . . . . . 1 2 6 . . . 23 11 30 21 20 Average Corruption 7 | . . . . . 1 1 3 . . . 9 11 9 13 7 Corruption Purged 5 | . . . . . . . 5 . . . . . . . . Corruption Blocked . | . . . . . . . . . . . . . . . . Effects 342 | . . . . . 3 24 78 . . . 90 31 30 83 3 Message Errors 78 | . . . . . 2 5 21 . . . 20 8 6 16 . Matter Fused 71 | . . . . . 1 6 15 . . . 17 12 5 15 . Heat Flow Errors 37 | . . . . . . 1 9 . . . 11 3 5 8 . Energy Discharges 34 | . . . . . . 2 7 . . . 8 6 1 9 1 Parts Rejected 8 | . . . . . . . 2 . . . 1 1 1 3 . Parts Fused 7 | . . . . . . . 2 . . . 1 1 1 2 . Data Loss (minor) 41 | . . . . . . 5 9 . . . 13 . 2 10 2 Data Loss (major) 19 | . . . . . . 3 2 . . . 8 . 2 4 . Misfires 16 | . . . . . . 1 4 . . . 4 . 1 6 . Alerts 8 | . . . . . . 1 5 . . . . . 1 1 . Misdirections 1 | . . . . . . . . . . . 1 . . . . Weapon Failures 22 | . . . . . . . 2 . . . 6 . 5 9 . Overload Shots . | . . . . . . . . . . . . . . . . Overflow Damage 1763 | . . . . . 165 111 311 178 . 122 470 19 387 . . Projectiles 692 | . . . . . 12 28 110 52 . 5 151 19 315 . . Explosions 201 | . . . . . 3 . . 126 . . . . 72 . . Melee 870 | . . . . . 150 83 201 . . 117 319 . . . . Knockbacks 165 | . 1 . . . 1 . 1 3 1 17 49 4 88 . . Impact 13 | . . . . . 1 . 1 1 . 1 8 . 1 . . Kinetic 143 | . 1 . . . . . . 2 1 16 39 4 80 . . Secondary 9 | . . . . . . . . . . . 2 . 7 . . Self-Inflicted Damage 325 | . . . . . . 25 . 179 . . . . 101 . 20 Shots 6 | . . . . . . 1 . 3 . . . . 2 . . Rammed 45 | . . . . . 2 2 6 7 . . 6 . 3 . 19 Targets Rammed 49 | . . . . . 3 2 7 8 . . 7 . 3 . 19 Kicked 1 | . . . . . 1 . . . . . . . . . . Crushed 3 | . . . . . . . 1 1 . . 1 . . . . Highest Temperature 1472 | . 66 30 . 22 354 77 345 309 51 1472 387 459 446 917 292 Average Temperature 120 | . 16 8 . 10 91 19 61 80 27 365 110 176 91 215 128 Received Heat Transfer 4873 | . 177 18 . . 1134 9 1104 117 . 189 393 331 699 558 144 Effects 82 | . . . . . 1 . 1 1 . 51 3 14 4 7 . Shutdowns 16 | . . . . . . . 1 . . 2 2 8 3 . . Energy Bleed 6 | . . . . . . . . 1 . 2 . 1 1 1 . Interference 8 | . . . . . . . . . . 7 . 1 . . . Matter Decay 8 | . . . . . 1 . . . . 6 . . . 1 . Short Circuit 4 | . . . . . . . . . . 2 . . . 2 . Damage (minor) 8 | . . . . . . . . . . 6 1 . . 1 . Damage (major) 28 | . . . . . . . . . . 23 . 4 . 1 . Damage (core) 4 | . . . . . . . . . . 3 . . . 1 . Siege Activations 37 | . . . . . . . . . . . . 10 21 5 1 Total Turns 1020 | . . . . . . . . . . . . 176 678 161 5 Longest Duration 114 | . . . . . . . . . . . . 43 114 67 5 Robots Corrupted 11 | . . . . . 2 1 . . . . . . . 4 4 Combat Hostiles 8 | . . . . . 1 1 . . . . . . . 2 4 Parts Fried 71 | . . . . . 15 7 3 . . . 1 . 3 30 12 Impact Corruptions 28 | . . . . . 7 1 4 . . 2 13 . 1 . . Robots Melted 10 | . . . . . . . 3 . . 2 2 2 1 . . Combat Hostiles 10 | . . . . . . . 3 . . 2 2 2 1 . . Parts Melted 57 | . . . . . 5 . 21 7 . 6 7 8 . 3 . Heat Transferred 23651 | . . . . . 2050 . 8806 2533 . 518 3811 3441 629 1493 370 Parts Sabotaged 2 | . . . . . . . . . . . . . 2 . . Parts Stolen . | . . . . . . . . . . . . . . . . Parts Stripped . | . . . . . . . . . . . . . . . . Power Chain Reactions 5 | . . . . . 2 2 . . . . . . . 1 . Missiles Intercepted . | . . . . . . . . . . . . . . . . Alert | -11 -10 -10 -10 -9 -8 -8 -7 -6 -5 -5 -4 -4 -3 -2 -1 ------- Run | Jun Mat Min Exi Min Mat Sto Fac Fac Fac DSF Fac Ext Res Res Acc Peak Influence 1078 | . 107 205 . 170 356 398 346 167 35 363 500 149 1078 569 236 Initial 452 | . . 18 . . 22 61 5 . 12 . 151 32 . 452 50 Average 143 | . 40 73 . 23 137 168 96 40 12 174 148 57 367 356 143 Maximum Alert Level 3 | . . 1 . . 1 1 1 . . 1 2 . 3 2 1 Low Security (%) 74 | 100 100 84 . 100 77 63 82 100 100 52 68 100 39 8 90 Level 1 18 | . . 15 . . 22 36 17 . . 47 31 . 26 55 9 Level 2 3 | . . . . . . . . . . . . . 11 35 . Level 3 2 | . . . . . . . . . . . . . 22 . . Level 4 . | . . . . . . . . . . . . . . . . Level 5 . | . . . . . . . . . . . . . . . . High Security . | . . . . . . . . . . . . . . . . Max Security . | . . . . . . . . . . . . . . . . Sterilizations 1 | . . . . . . . . . . 1 . . . . . Squads Dispatched 91 | . 1 . . . 5 2 16 11 1 3 15 . 26 10 1 Investigation 11 | . 1 . . . 1 1 3 2 . . 1 . 2 . . Extermination 41 | . . . . . . . 9 7 1 . 9 . 9 5 1 Reinforcement 15 | . . . . . 1 1 3 1 . 3 2 . 3 1 . Assault 7 | . . . . . . . . 1 . . 1 . 5 . . Garrison 17 | . . . . . 3 . 1 . . . 2 . 7 4 . Intercept . | . . . . . . . . . . . . . . . . Searches Triggered . | . . . . . . . . . . . . . . . . Construction Impeded 2 | . . . . . . . . . . . . . 2 . . Haulers Reinforced 3 | . . . . . . . 2 . . . . . . 1 . Active Scanning Responses . | . . . . . . . . . . . . . . . . Cargo Convoy Interrupts . | . . . . . . . . . . . . . . . . Stealth | -11 -10 -10 -10 -9 -8 -8 -7 -6 -5 -5 -4 -4 -3 -2 -1 --------- Run | Jun Mat Min Exi Min Mat Sto Fac Fac Fac DSF Fac Ext Res Res Acc Distress Signals 15 | . . . . . 1 2 1 2 . . . 2 5 1 1 Communications Jammed . | . . . . . . . . . . . . . . . . Distress Signals . | . . . . . . . . . . . . . . . . Times Spotted 458 | . 14 14 . 9 46 10 70 29 1 21 55 21 122 31 15 Peak Tracking Total 7 | . 2 7 . 3 7 2 7 4 1 4 5 5 7 5 7 Tactical Retreats 23 | . . . . 1 3 . 4 . . 2 1 3 5 4 . Traps | -11 -10 -10 -10 -9 -8 -8 -7 -6 -5 -5 -4 -4 -3 -2 -1 ------- Run | Jun Mat Min Exi Min Mat Sto Fac Fac Fac DSF Fac Ext Res Res Acc Traps Triggered 23 | . 1 . . . 3 3 5 2 . . 2 2 2 3 . Indirectly . | . . . . . . . . . . . . . . . . Trap Hack Attempts . | . . . . . . . . . . . . . . . . Triggered . | . . . . . . . . . . . . . . . . Disarmed . | . . . . . . . . . . . . . . . . Reprogrammed . | . . . . . . . . . . . . . . . . Reused . | . . . . . . . . . . . . . . . . Traps Extracted . | . . . . . . . . . . . . . . . . Installed . | . . . . . . . . . . . . . . . . Triggered . | . . . . . . . . . . . . . . . . Machines | -11 -10 -10 -10 -9 -8 -8 -7 -6 -5 -5 -4 -4 -3 -2 -1 ---------- Run | Jun Mat Min Exi Min Mat Sto Fac Fac Fac DSF Fac Ext Res Res Acc Machines Disabled 31 | . . . . . . 4 4 9 . 1 6 3 3 1 . Max in Single Turn 5 | . . . . . . 1 1 5 . 1 1 1 1 1 . Garrison Access 6 | . . . . . . . . 2 . . 1 . 1 2 . Machines Repaired . | . . . . . . . . . . . . . . . . Machines Sabotaged . | . . . . . . . . . . . . . . . . Overloaded Fab Kills . | . . . . . . . . . . . . . . . . Hacking | -11 -10 -10 -10 -9 -8 -8 -7 -6 -5 -5 -4 -4 -3 -2 -1 --------- Run | Jun Mat Min Exi Min Mat Sto Fac Fac Fac DSF Fac Ext Res Res Acc Machines Accessed 84 | . 10 . 1 . 12 6 19 5 4 . 9 7 4 6 1 Terminals 50 | . 8 . . . 7 5 12 2 2 . 5 5 1 3 . Fabricators 9 | . . . . . . . 5 . 1 . 2 . 1 . . Repair Stations 5 | . . . . . 1 1 1 1 . . . . 1 . . Recycling Units 11 | . 2 . . . 2 . 1 . 1 . 2 2 . . 1 Scanalyzers 3 | . . . . . 2 . . . . . . . . 1 . Garrison Access 5 | . . . . . . . . 2 . . . . 1 2 . Total Hacks 221 | . 30 . 1 . 39 20 46 12 6 . 29 17 6 13 2 Successful 132 | . 16 . 1 . 29 16 29 4 2 . 16 11 . 6 2 Failed 88 | . 14 . . . 10 4 16 8 4 . 13 6 6 7 . Catastrophic 17 | . 1 . . . 2 . 4 3 . . 2 2 1 2 . Database Lockouts 1 | . . . . . . . 1 . . . . . . . . Manual 103 | . 23 . 1 . 14 6 31 3 5 . 13 4 1 1 1 Terminals 128 | . 24 . . . 22 12 30 5 3 . 16 8 2 6 . Fabricators 21 | . . . . . . . 11 . 2 . 7 . 1 . . Repair Stations 20 | . . . . . 4 8 4 3 . . . . 1 . . Recycling Units 30 | . 6 . . . 5 . 1 . 1 . 6 9 . . 2 Scanalyzers 10 | . . . . . 8 . . . . . . . . 2 . Garrison Access 11 | . . . . . . . . 4 . . . . 2 5 . Terminal Hacks 50 | . 4 . 1 . 11 5 11 1 1 . 8 6 . 2 . Record 3 | . . . . . . . . . . . . 2 . 1 . Robot Schematic 2 | . . . . . . 1 1 . . . . . . . . Robot Analysis 8 | . . . . . 2 . 4 . . . 2 . . . . Prototype ID Bank 4 | . 1 . . . 3 . . . . . . . . . . Open Door 5 | . . . . . . 1 . . . . 1 3 . . . Open DSF 2 | . . . . . . . 1 . 1 . . . . . . Emergency Access Points 1 | . . . . . 1 . . . . . . . . . . Terminal Index 1 | . . . . . 1 . . . . . . . . . . Fabricator Index 1 | . . . . . . 1 . . . . . . . . . Alert Level 8 | . 1 . . . 1 1 2 . . . 1 1 . 1 . Unreport Threat 4 | . . . . . . . 1 . . . 3 . . . . Locate Traps 5 | . 1 . . . 1 . 2 . . . 1 . . . . Dispatch Records 1 | . 1 . . . . . . . . . . . . . . Reinforcement Status 1 | . . . . . . 1 . . . . . . . . . Recall Investigation 1 | . . . . . . . . 1 . . . . . . . Registered Components 1 | . . . . . 1 . . . . . . . . . . Zone Layout 1 | . . . . . 1 . . . . . . . . . . EX-Prototype ID Bank 1 | . . . 1 . . . . . . . . . . . . Fabricator Hacks 4 | . . . . . . . 3 . . . 1 . . . . Network Status 1 | . . . . . . . 1 . . . . . . . . Load Schematic 1 | . . . . . . . 1 . . . . . . . . Build 2 | . . . . . . . 1 . . . 1 . . . . Repair Station Hacks 18 | . . . . . 4 8 4 2 . . . . . . . Scan Component 9 | . . . . . 2 4 2 1 . . . . . . . Repair 9 | . . . . . 2 4 2 1 . . . . . . . Recycling Unit Hacks 11 | . 2 . . . 1 . . . . . 3 4 . . 1 Report Inventory 7 | . 1 . . . 1 . . . . . 2 2 . . 1 Retrieve Components 4 | . 1 . . . . . . . . . 1 2 . . . Scanalyzer 9 | . . . . . 7 . . . . . . . . 2 . Insert Component 3 | . . . . . 2 . . . . . . . . 1 . Analyze 6 | . . . . . 5 . . . . . . . . 1 . Garrison Access Hacks 3 | . . . . . . . . 1 . . . . . 2 . Seal Access 3 | . . . . . . . . 1 . . . . . 2 . Unauthorized Hacks 37 | . 10 . . . 6 3 11 . 1 . 4 1 . . 1 Terminals 22 | . 8 . . . 5 3 6 . . . . . . . . Assimilate 1 | . . . . . . . 1 . . . . . . . . Botnet 21 | . 8 . . . 5 3 5 . . . . . . . . Fabricators 6 | . . . . . . . 4 . . . 2 . . . . Fabnet 6 | . . . . . . . 4 . . . 2 . . . . Repair Stations . | . . . . . . . . . . . . . . . . Recycling Units 9 | . 2 . . . 1 . 1 . 1 . 2 1 . . 1 Mask 9 | . 2 . . . 1 . 1 . 1 . 2 1 . . 1 Scanalyzers . | . . . . . . . . . . . . . . . . Garrison Access . | . . . . . . . . . . . . . . . . Data Cores Recovered 2 | . . . . . . 1 . 1 . . . . . . . Used . | . . . . . . . . . . . . . . . . Hacking Detections 69 | . 9 . . . 8 5 17 5 3 . 7 4 4 6 1 Full Trace Events 9 | . 1 . . . 1 2 2 2 . . . . 1 . . Feedback Events . | . . . . . . . . . . . . . . . . Feedback Blocked . | . . . . . . . . . . . . . . . . Robot Schematics Acquired 2 | . . . . . . 1 1 . . . . . . . . Robots Built 3 | . . . . . . . 3 . . . . . . . . Authchips . | . . . . . . . . . . . . . . . . Time 134 | . . . . . . . 134 . . . . . . . . Total Robot Build Rating 12 | . . . . . . . 12 . . . . . . . . Part Schematics Acquired 3 | . . . . . 2 . . . . . . . . 1 . Parts Built 1 | . . . . . . . . . . . 1 . . . . Authchips . | . . . . . . . . . . . . . . . . Time 139 | . . . . . . . . . . . 139 . . . . Total Part Build Rating 9 | . . . . . . . . . . . 9 . . . . Parts Repaired 9 | . . . . . 2 4 2 1 . . . . . . . Time 439 | . . . . . 76 253 88 22 . . . . . . . Parts Recycled . | . . . . . . . . . . . . . . . . Recycled Matter . | . . . . . . . . . . . . . . . . Retrieved Matter . | . . . . . . . . . . . . . . . . Retrieved Components 18 | . 10 . . . . . . . . . 3 5 . . . Parts Scanalyzed 3 | . . . . . 2 . . . . . . . . 1 . Part Schematics Acquired 3 | . . . . . 2 . . . . . . . . 1 . Parts Damaged . | . . . . . . . . . . . . . . . . Bothacking | -11 -10 -10 -10 -9 -8 -8 -7 -6 -5 -5 -4 -4 -3 -2 -1 ------------ Run | Jun Mat Min Exi Min Mat Sto Fac Fac Fac DSF Fac Ext Res Res Acc Used RIF Installer . | . . . . . . . . . . . . . . . . Robots Hacked 7 | . . . . . . . . 1 . 1 . . 5 . . Non-combat . | . . . . . . . . . . . . . . . . Combat 7 | . . . . . . . . 1 . 1 . . 5 . . Robot Hacks Applied . | . . . . . . . . . . . . . . . . Relay Couplers Released 9 | . . . . . . . . 2 . . 1 . 3 3 . Machine Destruction 6 | . . . . . . . . 2 . . 1 . 3 . . Programmers 3 | . . . . . . . . . . . . . . 3 . Fabnet Peak Effective % 12 | . . . . . . . . 12 4 4 . . 3 1 . Autooverrided 7 | . . . . . . . . 1 . 1 . . 5 . . Robots Rewired 4 | . . . . . . . . . . . . 4 . . . Allies Hacked . | . . . . . . . . . . . . . . . . Hacks Repelled . | . . . . . . . . . . . . . . . . Allies | -11 -10 -10 -10 -9 -8 -8 -7 -6 -5 -5 -4 -4 -3 -2 -1 -------- Run | Jun Mat Min Exi Min Mat Sto Fac Fac Fac DSF Fac Ext Res Res Acc Total Allies 30 | . . 3 . . . 10 3 1 . 1 . 7 5 . . Largest Group 10 | . . 3 . . . 10 3 1 . 1 . 4 2 . . Highest-Rated Group 205 | . . 40 . . . 173 90 29 . 29 . 205 205 . . Highest-Rated Ally 159 | . . 16 . . . 29 30 29 . 29 . 159 159 . . Total Orders . | . . . . . . . . . . . . . . . . Ally Attacks 214 | . . 1 . . . 116 25 6 . 3 . 49 14 . . Total Damage 3665 | . . 13 . . . 1447 526 95 . 19 . 1014 551 . . Kills 31 | . . . . . . 17 8 . . . . 4 2 . . Allies Corrupted 1 | . . . . . . . 1 . . . . . . . . Allies Melted . | . . . . . . . . . . . . . . . . Intel | -11 -10 -10 -10 -9 -8 -8 -7 -6 -5 -5 -4 -4 -3 -2 -1 ------- Run | Jun Mat Min Exi Min Mat Sto Fac Fac Fac DSF Fac Ext Res Res Acc Robot Analysis Total 8 | . . . . . 2 . 4 . . . 2 . . . . Derelict Logs Recovered 2 | . . 1 . 1 . . . . . . . . . . . Drone Launches . | . . . . . . . . . . . . . . . . Drone Recoveries . | . . . . . . . . . . . . . . . . Exploration | -11 -10 -10 -10 -9 -8 -8 -7 -6 -5 -5 -4 -4 -3 -2 -1 ------------- Run | Jun Mat Min Exi Min Mat Sto Fac Fac Fac DSF Fac Ext Res Res Acc Turns Passed 31533 | 53 1597 384 266 1785 2291 1778 4882 4632 870 586 3927 2029 3920 2190 343 Spaces Moved 14632 | 37 814 284 221 1008 1052 841 2361 1917 496 231 1841 989 1334 1058 148 Core 24 | 11 . . . . 11 . . . . . . . . . 2 Treads 10825 | . . . . . 467 841 2361 1917 496 231 1555 989 1273 549 146 Legs 3497 | 26 814 284 221 1008 574 . . . . . . . 61 509 . Wheels . | . . . . . . . . . . . . . . . . Hover 286 | . . . . . . . . . . . 286 . . . . Flight . | . . . . . . . . . . . . . . . . Fastest Speed 50 | 50 120 120 120 120 120 160 152 160 162 160 104 152 120 120 50 Average Speed 159 | 118 161 120 120 120 149 160 160 199 162 177 162 157 162 142 160 Slowest Speed 450 | 200 190 120 120 120 450 160 232 250 162 240 340 161 270 250 225 Overloaded Moves . | . . . . . . . . . . . . . . . . Propulsion Burnouts . | . . . . . . . . . . . . . . . . Robots Hopped . | . . . . . . . . . . . . . . . . Cave-ins Triggered . | . . . . . . . . . . . . . . . . Exploration Rate (%) 55 | 3 94 77 65 95 86 97 60 50 11 94 19 94 21 19 4 Regions Visited 15 Branch Regions 5 Pre-discovered Areas . | . . . . . . . . . . . . . . . . Known Exits Taken 13 | . 1 1 1 1 1 1 1 1 1 . 1 1 1 1 . Unknown Exits Taken 1 | 1 . . . . . . . . . . . . . . . Scrap Searched 2 | . . 1 . 1 . . . . . . . . . . . Spaces Dug . | . . . . . . . . . . . . . . . . Terrain Destroyed 295 | . . . . . 5 31 2 56 1 8 45 12 126 6 3 Melee . | . . . . . . . . . . . . . . . . Projectile 168 | . . . . . . . 2 14 1 8 45 12 77 6 3 AOE 126 | . . . . . 5 31 . 42 . . . . 48 . . Terrain Rammed . | . . . . . . . . . . . . . . . . Walls Destroyed . | . . . . . . . . . . . . . . . . Machines Disabled . | . . . . . . . . . . . . . . . . Actions | -11 -10 -10 -10 -9 -8 -8 -7 -6 -5 -5 -4 -4 -3 -2 -1 --------- Run | Jun Mat Min Exi Min Mat Sto Fac Fac Fac DSF Fac Ext Res Res Acc Total 20660 | 43 1033 309 222 1559 1569 1241 3135 2633 560 337 2443 1335 2589 1451 201 Wait 4287 | . 153 2 . 537 315 347 540 612 57 55 323 201 950 185 10 Move 14617 | 36 813 283 220 1007 1051 840 2360 1916 495 230 1840 988 1333 1057 148 Hop . | . . . . . . . . . . . . . . . . Pick Up 75 | 1 6 4 1 . 9 5 4 11 2 2 16 3 6 5 . Fast Attach 276 | 6 11 3 . . 33 13 27 17 3 8 40 28 40 45 2 Attach 60 | . . . . . 3 . 5 6 . 2 13 7 17 5 2 Detach 24 | . . . . . 1 . 3 3 . . 5 3 8 1 . Swap 72 | . 3 . . . 12 4 13 6 . 5 12 4 6 7 . Drop 205 | . 11 5 1 . 28 14 22 15 2 4 32 22 22 26 1 Fire 891 | . 36 12 . 15 75 13 148 39 1 30 120 59 204 120 19 Melee 84 | . . . . . 39 3 6 . . 1 35 . . . . Ram 19 | . . . . . . . . . . . . . . . 19 Kick 1 | . . . . . 1 . . . . . . . . . . Crush 29 | . . . . . 2 2 7 8 . . 7 . 3 . . Escape Stasis . | . . . . . . . . . . . . . . . . Rewire 20 | . . . . . . . . . . . . 20 . . . Trap . | . . . . . . . . . . . . . . . . Miscellaneous . | . . . . . . . . . . . . . . . . Route ------- -11/Junkyard -10/Materials (discovered 5 exits: *Mat x3 / *Min x2) -10/Mines (discovered 2 exits: *Mat / *Exi) -10/Exiles -9/Mines -8/Materials (discovered 5 exits: *Fac x3 / *Sto x2) -8/Storage -7/Factory (discovered 3 exits: *Fac x2 / *Low) -6/Factory (discovered 2 exits: *Fac x2) -5/Factory -5/DSF -4/Factory -4/Extension (discovered 3 exits: *Res x2 / *Cet) -3/Research -2/Research -1/Access History --------- Turn | Location | Event 17 | -11/Junkyard | Discovered new exit (range 15) 54 | -11/Junkyard | Entered Materials 302 | -10/Materials | Build established: Mutant 351 | -10/Materials | Discovered new exit (range 7) 467 | -10/Materials | Discovered new exit (range 10) 633 | -10/Materials | Discovered new exit (range 7) 715 | -10/Materials | Discovered new exit (range 16) 1142 | -10/Materials | Discovered new exit (range 12) 1413 | -10/Materials | Identified exit to Materials 1475 | -10/Materials | Identified exit to Mines 1651 | -10/Materials | Entered Mines 1672 | -10/Mines | Found a damaged Exp. Sensor Array with a note attached 1675 | -10/Mines | Found Prototype Device 1675 | -10/Mines | Identified Exp. Sensor Array 1699 | -10/Mines | Build established: Scavenger-Mutant 1752 | -10/Mines | Learned Materials security intel 1774 | -10/Mines | Discovered exit to Materials (range 13) 1790 | -10/Mines | Assisted by bots powering up and referring to "LRC-V3" 1823 | -10/Mines | Assembled infested the area 1902 | -10/Mines | Joined a pair of Derelicts in attacking an 0b10 outpost 2029 | -10/Mines | Deemed a non-threat by the Exiles lab entrance 2030 | -10/Mines | Discovered new exit (range 5) 2034 | -10/Mines | Identified exit to Exiles 2035 | -10/Mines | Entered Exiles 2064 | -10/Exiles | Met 8R-AWN 2086 | -10/Exiles | Met EX-HEX 2118 | -10/Exiles | Met EX-BIN 2135 | -10/Exiles | Aligned with FarCom system 2136 | -10/Exiles | Given EX-Vault access code 2166 | -10/Exiles | Opened EX-Vault 2180 | -10/Exiles | Found Skeleton Box 2204 | -10/Exiles | Warned to stay clear of 0b10 Research branches 2246 | -10/Exiles | Met EX-DEC 2289 | -10/Exiles | Discovered new exit (range 12) 2300 | -10/Exiles | Identified exit to Mines 2301 | -10/Exiles | Left Exiles lab with Skeleton Box 2301 | -10/Exiles | Entered Mines 2405 | -9/Mines | Learned location of 1 exit from Materials 4021 | -9/Mines | Core integrity fell below 50% 4043 | -9/Mines | Discovered new exit (range 16) 4083 | -9/Mines | Identified exit to Materials 4086 | -9/Mines | Entered Materials 4086 | -8/Materials | Evolved 4 slots: Power x1, Propulsion x1, Utility x2 4087 | -8/Materials | Identified exit to Storage 4252 | -8/Materials | Lost 3 parts (2n1w) 4792 | -8/Materials | Lost 3 parts (1p2n) 5067 | -8/Materials | Discovered new exit (range 3) 5072 | -8/Materials | Identified exit to Factory 5204 | -8/Materials | Discovered exit to Storage (range 12) 5293 | -8/Materials | Repaired Nuclear Core 5332 | -8/Materials | Repaired Carbon-fiber Leg 5397 | -8/Materials | Garrison activated, responded to threat 5414 | -8/Materials | Discovered exit to Factory (range 11) 5459 | -8/Materials | Core integrity fell below 50% 5481 | -8/Materials | Lost 8 parts (2p3n1u2w) 5935 | -8/Materials | Discovered exit to Factory (range 13) 6117 | -8/Materials | Build established: Mutant 6377 | -8/Materials | Entered Storage 6494 | -8/Storage | Assisted by bots powering up and referring to "LRC-V3" 6802 | -8/Storage | Build established: Commander-Mutant 6850 | -8/Storage | Repaired Exp. Sensor Array 6901 | -8/Storage | Repaired Adv. Heat Sink 6953 | -8/Storage | Repaired Adv. Beam Cannon 6998 | -8/Storage | Repaired Imp. EM Pulse Cannon 7265 | -8/Storage | Discovered exit to Factory (range 16) 7960 | -8/Storage | Build established: Mutant 8155 | -8/Storage | Entered Factory 8155 | -7/Factory | Accompanied by 3 allies 8155 | -7/Factory | Evolved 2 slots: Utility x2 8913 | -7/Factory | Discovered new exit (range 10) 8932 | -7/Factory | Identified exit to Lower Caves 10077 | -7/Factory | Discovered new exit (range 5) 10084 | -7/Factory | Identified exit to Factory 10243 | -7/Factory | Garrison activated, responded to threat 11186 | -7/Factory | Repaired Imp. Deuterium Engine 11231 | -7/Factory | Repaired Med. Treads 11514 | -7/Factory | Central database locked down 12008 | -7/Factory | Lost 4 parts (1n1u2w) 12265 | -7/Factory | Fabricated L-41 Fighter (x3) 12675 | -7/Factory | Build established: Skirmisher 12684 | -7/Factory | Discovered exit to Factory (range 19) 13037 | -7/Factory | Entered another Factory area 13037 | -6/Factory | Evolved 2 slots: Propulsion x1, Weapon x1 15261 | -6/Factory | Lost 3 parts (1p1n1w) 16010 | -6/Factory | Repaired Hvy. Ion Cannon 16376 | -6/Factory | Local machine network offline 16448 | -6/Factory | Discovered new exit (range 15) 16480 | -6/Factory | Identified exit to Factory 17128 | -6/Factory | Discovered exit to Factory (range 8) 17669 | -6/Factory | Entered another Factory area 17669 | -5/Factory | Evolved 2 slots: Utility x2 18337 | -5/Factory | Identified exit to DSF 18539 | -5/Factory | Entered DSF 18630 | -5/DSF | Additional patrols routed to DSF 18672 | -5/DSF | Lost 5 parts (1p2n2u) 18879 | -5/DSF | Sterilization system engaged 18899 | -5/DSF | Ambient heat levels rising (+10) 18914 | -5/DSF | Ambient heat levels rising (+10) 18929 | -5/DSF | Ambient heat levels rising (+10) 18944 | -5/DSF | Ambient heat levels rising (+10) 18959 | -5/DSF | Ambient heat levels rising (+10) 18974 | -5/DSF | Ambient heat levels rising (+10) 18989 | -5/DSF | Ambient heat levels rising (+10) 19004 | -5/DSF | Ambient heat levels rising (+10) 19014 | -5/DSF | Discovered new exit (range 15) 19019 | -5/DSF | Ambient heat levels rising (+10) 19029 | -5/DSF | Core integrity fell below 50% 19034 | -5/DSF | Ambient heat levels rising (+10) 19049 | -5/DSF | Ambient heat levels rising (+10) 19049 | -5/DSF | Lost 6 parts (2p2u2w) 19064 | -5/DSF | Ambient heat levels rising (+10) 19079 | -5/DSF | Ambient heat levels rising (+10) 19094 | -5/DSF | Ambient heat levels rising (+10) 19109 | -5/DSF | Ambient heat levels rising (+10) 19124 | -5/DSF | Ambient heat levels rising (+10) 19125 | -5/DSF | Entered Factory 19125 | -4/Factory | Evolved 2 slots: Propulsion x1, Weapon x1 20010 | -4/Factory | Build established: Hacker-Mutant 20970 | -4/Factory | Fabricated Enh. Nova Cannon? 20982 | -4/Factory | Build established: Hacker-Gunner 21021 | -4/Factory | System corruption reached 10% 21098 | -4/Factory | Lost 5 parts (1p1u3w) 21410 | -4/Factory | Garrison activated, responded to threat 21554 | -4/Factory | Build established: Scavenger-Skirmisher 22073 | -4/Factory | Lost 4 parts (1p2n1u) 22492 | -4/Factory | Build established: Scavenger-Gunner 23001 | -4/Factory | Discovered new exit (range 6) 23006 | -4/Factory | Identified exit to Extension 23052 | -4/Factory | Entered Extension 23084 | -4/Extension | Disrupted transfer network 23273 | -4/Extension | Rescued a captive Derelict 23567 | -4/Extension | Rescued a captive Derelict 24262 | -4/Extension | Spotted B-86 Titan 24270 | -4/Extension | Destroyed B-86 Titan 24333 | -4/Extension | Discovered new exit (range 3) 24336 | -4/Extension | Identified exit to Research 24546 | -4/Extension | Rescued A7 24910 | -4/Extension | Discovered exit to Research (range 10) 24912 | -4/Extension | Discovered new exit (range 6) 24922 | -4/Extension | Identified exit to Cetus 25081 | -4/Extension | Entered Research 25081 | -3/Research | Accompanied by 2 allies (A7) 25081 | -3/Research | Evolved 2 slots: Utility x2 26311 | -3/Research | Discovered new exit (range 12) 26334 | -3/Research | Identified exit to Research 26413 | -3/Research | Garrison activated, responded to threat 27082 | -3/Research | Garrison activated, responded to threat 27351 | -3/Research | Found Prototype Device 27351 | -3/Research | Identified Exp. ECM Suite 27631 | -3/Research | Garrison activated, responded to threat 27831 | -3/Research | First assault squad dispatched 28014 | -3/Research | Build established: Scavenger-Tank 28082 | -3/Research | Local machine network offline 28601 | -3/Research | System corruption reached 10% 28633 | -3/Research | Lost 3 parts (3u) 28766 | -3/Research | System corruption reached 30% 28823 | -3/Research | Lost 14 parts (2p5n4u3w) 28975 | -3/Research | Found Unknown Device 28975 | -3/Research | Identified Antimissile System 29001 | -3/Research | Entered another Research area 29001 | -2/Research | Evolved 2 slots: Utility x2 29059 | -2/Research | Build established: Scavenger-Gunner 29388 | -2/Research | Spotted B-90 Cyclops 29432 | -2/Research | Garrison activated, responded to threat 29460 | -2/Research | Lost 6 parts (1p2u3w) 29754 | -2/Research | System corruption reached 10% 29805 | -2/Research | Lost 3 parts (2u1w) 29906 | -2/Research | Destroyed B-90 Cyclops 30424 | -2/Research | Found Prototype Processor 30424 | -2/Research | Identified Exp. Core Analyzer 30725 | -2/Research | Spotted B-90 Cyclops 30767 | -2/Research | Lost 4 parts (1u3w) 30936 | -2/Research | Discovered new exit (range 5) 30943 | -2/Research | Identified exit to Access 31191 | -2/Research | Entered Access 31191 | -1/Access | Evolved 2 slots: Utility x2 31511 | -1/Access | System corruption reached 10% 31520 | -1/Access | Core integrity fell below 50% 31529 | -1/Access | Core integrity fell below 20% 31534 | -1/Access | Destroyed by Antimatter Reactor chain reaction Last Messages --------------- Slammed into P-80 Master. Destabilizing: System corrupted (+1). P-80 Master resets P-80 Master, system corruption cleaned. Slammed into P-80 Master. Penetrated by Slug. Slammed into P-80 Master. Destabilizing: Core damaged (-48). Slammed into P-80 Master. Destabilizing: System corrupted (+1). Slammed into P-80 Master. P-80 Master destroyed. Penetrated by Slug. P-80 Master resets P-80 Master, system corruption cleaned. Acquired Gamma Rifle. Gamma Rifle destroyed. Slammed into P-80 Master. System corrupted: Energy discharge (-33). Spectral Interrupter explodes. Chain reaction triggered in Corrupted Antimatter Reactor. P-80 Master destroyed. Map ----- +----------------------------------------------------+ | ??????????????????? =#????????????? | | ??????????????????????####### #????????????? | | ????????????????????????????# #????????????? | | ????????????????????????????# #????????????? | | ????????????????????????????# #????????????? | | ????????????????????????????# #????????????? | | ????????????????????????????# [#????????????? | | ????????????????????????????# =%#????????????? | | ????????????????????????????# !#????????????? | | ????????????????????????????# *=%#????????????? | | ????????????????????????????# %!=#????????????? | | ????????????????????????????# =*%#????????????? | | ????????????????????????????# !#????????????? | | ????????????????????????????#! #????????????? | | ????????????????????????????#% #????????????? | | ????????????????????????????# #????????????? | | ????????????????????????????# #????????????? | | ????????????????????????????# = #????????????? | | ????????????????????????????# [%[ #????????????? | | ???????????????############## [ #????????????? | | ???????????????# %%% # #????????????? | | ???????????????# %%%p# #????????????? | | ???????????????# |%%g# #????????????? | | ???????????????# %%%%# #????????????? | | ???????????????# *p![%# #????????????? | | ???????????????# !!@%h* #????????????? | | ???????????????# ! !|! = %#????????????? | | ???????????????# ! |[; !%! #????????????? | | ???????????????# = ; ! *%########?????? | | ???????????????# ; #?????? | | ???????????????# ; #?????? | | ???????????????# # #?????? | | ???????????????############## #?????? | | ????????????????????????????# #?????? | | ????????????????????????????# ! #?????? | | ????????????????????????????# =$ #?????? | | ????????????????????????????####/### % #?????? | | ??????????????????????????????? ?# #?????? | | ??????????????????????????????? ?# #?????? | | ??????????????????????????????? ??# +?????? | | ??????????????????????????????? ???# #?????? | | ???????????????????????????????????# #?????? | | ???????????????????????????????????# ####### | | ???????????????????????????????????# | | ???????????????????????????????????# | | ???????????????????????????????????# | | ???????????????????????????????????# | | ???????????????????????????????????# | | ???????????????????????????????????# | | ???????????????????????????????????# | +----------------------------------------------------+ Best States ------------- Heat Dissipation 130 Coolant Potential 320 Energy Generation 46 Energy Capacity 1075 Matter Stores 300 Matter Capacity 300 Sight Range 20 Robot Scan Range 20 Terrain Scan Density 10 ECM Strength 2 Power Amplification 30 Base Temperature (-) 200 EM Shielding 3 Corruption Containment 12 Armor Coverage 1650 Resistance: KI 45 Resistance: TH 20 Resistance: EX 20 Resistance: EM 40 Resistance: I 20 Resistance: S 20 Resistance: P 20 Core Shielding 20 Power Shielding 66 Propulsion Shielding 33 Point Defense Rating 240 Phase Shifting 10 Evasion (%) 65 Targeting Accuracy 8 Target Analysis 12 Core Analysis 8 Recoil Reduction 5 Particle Charging 30 Offensive Hacking 10 Defensive Hacking 14 Item Schematics ----------------- Exp. Sensor Array | -8/Materials | Scanalyzed Hrd. Medium Armor Plating | -8/Materials | Scanalyzed Imp. Phase Shifter | -2/Research | Scanalyzed Robot Schematics ------------------ M-13 Machinist | -8/Storage | Hacked L-41 Fighter | -7/Factory | Hacked Fabricated ------------ L-41 Fighter | x3 | -7/Factory Enh. Nova Cannon | x1 | -4/Factory | Preloaded Alien Tech Used ----------------- None Achievements -------------- Dangerous Findings Denied? More Dakka Please My Command Is Your Wish Ooh, Shiny! Quantum Hacking Rockin' Loadout Challenges ------------ None Game ------ Seed MagneticMetafieldPit Manual? 0 Play Time 04:23:38 Cumulative 49.7 hours Start 2023.09.17 @ 23:22:17 End 2023.09.22 @ 13:08:52 Sessions 11 Manual Loads 0 Difficulty Adventurer Special Mode None Game No. 15 Rogue 0 Adventurer 15 Explorer 0 Win Type - Total 0 Types 0/0/0/0/0/0/0/0/0 Lore% 28 Gallery% 39 Achievement% 35 Wizard Run 0 Options --------- ASCII 0 Keyboard 0 Movement Numpad Keybinds 0 Fullscreen 1 Font 24/Smallcaps Map View 76x50 Tactical HUD 0 Map Filters NONE Filters NONE Steam 1 RUN: 85700ca6-23ee-43c0-8d29-390c9ce942a8